fUSD/lending_fUSD_20240628
["ID","MTS","AMOUNT","RATE_DAILY","PERIOD"]
[330547733,1719561178266,-1255.94,0.00021643,2]
[330547734,1719561178275,-4077.23,0.00021643,2]
[330547735,1719561178284,-602.61,0.00021643,2]
[330547736,1719561178292,-11111.01,0.00021643,2]
[330547737,1719561178302,-500.0,0.00021643,2]
[330547738,1719561178311,-1358.81,0.00021643,2]
[330547739,1719561178321,-500.0,0.00021643,2]
[330547740,1719561178330,-1300.0,0.00021643,2]
[330547741,1719561178339,-1332.94,0.00021643,2]
[330547742,1719561178348,-1544.91,0.00021643,2]
[330547743,1719561178357,-712.95,0.00021643,2]
[330547744,1719561178367,-1446.93,0.00021643,2]
[330547745,1719561178375,-42236.37,0.00021643,2]
[330547746,1719561178384,-707.93,0.00021643,2]
[330547747,1719561178394,-850.09,0.00021643,2]
[330547748,1719561178403,-2886.12,0.00021643,2]
[330547749,1719561178412,-945.42,0.00021643,2]
[330547750,1719561178422,-500.0,0.00021643,2]
[330547751,1719561178431,-500.0,0.00021643,2]
[330547752,1719561178440,-13133.43,0.00021643,2]
[330547753,1719561178450,-594.36,0.00021643,2]
[330547754,1719561178459,-1924.21,0.00021643,2]
[330547755,1719561178468,-1289.14,0.00021643,2]
[330547756,1719561178477,-12586.2,0.00021643,2]
[330547757,1719561178486,-768.96,0.00021643,2]
[330547758,1719561178496,-5222.3,0.00021643,2]
[330547759,1719561178505,-2337.53,0.00021643,2]
[330547760,1719561178515,-831.9,0.00021643,2]
[330547761,1719561178524,-500.0,0.00021643,2]
[330547762,1719561178533,-500.0,0.00021643,2]
[330547763,1719561178543,-500.0,0.00021643,2]
[330547764,1719561178552,-628.24,0.00021643,2]
[330547765,1719561178562,-500.0,0.00021643,2]
[330547766,1719561178572,-5851.92,0.00021643,2]
[330547767,1719561178581,-598.11,0.00021643,2]
[330547768,1719561178591,-603.56,0.00021643,2]
[330547769,1719561178601,-1283.39,0.00021643,2]
[330547770,1719561178610,-1699.87,0.00021643,2]
[330547771,1719561178619,-2793.12,0.00021643,2]
[330547772,1719561178629,-671.55,0.00021643,2]
[330547773,1719561178638,-4870.14,0.00021643,2]
[330547774,1719561178647,-499.44518946,0.00021643,2]
[330547775,1719561178656,-540.72,0.00021643,2]
[330547776,1719561178665,-500.0,0.00021643,2]
[330547777,1719561178674,-721.87,0.00021643,2]
[330547778,1719561178684,-500.0,0.00021643,2]
[330547779,1719561178693,-966.94,0.00021643,2]
[330547780,1719561178704,-505.4,0.00021643,2]
[330547781,1719561178713,-500.0,0.00021643,2]
[330547782,1719561178723,-704.49,0.00021643,2]
[330547783,1719561178732,-1685.84,0.00021643,2]
[330547784,1719561178742,-2147.27,0.00021643,2]
[330547785,1719561178751,-500.0,0.00021643,2]
[330547786,1719561178760,-500.0,0.00021643,2]
[330547787,1719561178770,-4610.65,0.00021643,2]
[330547788,1719561178779,-574.19,0.00021643,2]
[330547789,1719561178789,-3996.23,0.00021643,2]
[330547790,1719561178798,-500.0,0.00021643,2]
[330547791,1719561178808,-2065.71,0.00021643,2]
[330547792,1719561178817,-3987.89,0.00021643,2]
[330547793,1719561178826,-587.38,0.00021643,2]
[330547794,1719561178835,-687.46,0.00021643,2]
[330547795,1719561178844,-3336.77,0.00021643,2]
[330547796,1719561178854,-1330.45,0.00021643,2]
[330547797,1719561178867,-3314.18,0.00021643,2]
[330547798,1719561178889,-500.0,0.00021643,2]
[330547799,1719561178907,-872.41,0.00021643,2]
[330547800,1719561178925,-500.0,0.00021643,2]
[330547801,1719561178946,-810.49,0.00021643,2]
[330547802,1719561178965,-1974.25,0.00021643,2]
[330547803,1719561178981,-5236.64,0.00021643,2]
[330547804,1719561178998,-500.0,0.00021643,2]
[330547805,1719561179013,-642.68,0.00021643,2]
[330547806,1719561179029,-4552.9,0.00021643,2]
[330547807,1719561179045,-32404.44,0.00021643,2]
[330547808,1719561179067,-795.7,0.00021643,2]
[330547809,1719561179079,-790.32,0.00021643,2]
[330547810,1719561179096,-694.42,0.00021643,2]
[330547811,1719561179112,-24101.78,0.00021643,2]
[330547812,1719561179127,-4218.61,0.00021643,2]
[330547813,1719561179142,-922.73,0.00021643,2]
[330547814,1719561179159,-4199.29,0.00021643,2]
[330547815,1719561179176,-7764.7,0.00021643,2]
[330547816,1719561179195,-717.49,0.00021643,2]
[330547817,1719561179209,-897.41,0.00021643,2]
[330547818,1719561179224,-701.5,0.00021643,2]
[330547819,1719561179239,-1450.89,0.00021643,2]
[330547820,1719561179254,-4300.22,0.00021643,2]
[330547821,1719561179268,-1033.21,0.00021643,2]
[330547822,1719561179282,-500.0,0.00021643,2]
[330547823,1719561179297,-776.36,0.00021643,2]
[330547824,1719561179311,-608.64,0.00021643,2]
[330547825,1719561179325,-500.0,0.00021643,2]
[330547826,1719561179341,-9904.94,0.00021643,2]
[330547827,1719561179357,-640.51,0.00021643,2]
[330547828,1719561179372,-1429.64,0.00021643,2]
[330547829,1719561179387,-431.83,0.00021643,2]
[330547830,1719561179401,-3512.53,0.00021643,2]
[330547831,1719561179416,-573.81,0.00021643,2]
[330547832,1719561179431,-1577.54,0.00021643,2]
[330547833,1719561179445,-2085.15,0.00021643,2]
[330547834,1719561179461,-500.0,0.00021643,2]
[330547835,1719561179477,-930.57,0.00021643,2]
[330547836,1719561179493,-4334.27,0.00021643,2]
[330547837,1719561179508,-1068.95,0.00021643,2]
[330547838,1719561179523,-1596.89,0.00021643,2]
[330547839,1719561179537,-1065.22,0.00021643,2]
[330547840,1719561179552,-1080.72,0.00021643,2]
[330547841,1719561179568,-3797.01,0.00021643,2]
[330547842,1719561179583,-500.0,0.00021643,2]
[330547843,1719561179598,-5569.46064165,0.00021643,2]
[330547844,1719561179614,-5569.46064165,0.00021643,2]
[330547845,1719561179628,-5569.46064165,0.00021643,2]
[330547846,1719561179644,-5569.46064165,0.00021643,2]
[330547847,1719561179659,-157.23,0.00021644,2]
[330547848,1719561179674,-155.28,0.00021644,2]
[330547849,1719561179689,-284.91,0.00021644,2]
[330547850,1719561179704,-160.47,0.00021644,2]
[330547851,1719561179718,-150.63,0.00021644,2]
[330547852,1719561179733,-351.159259,0.00021656,2]
[330547853,1719561179747,-17070.950037,0.00021656,2]
[330547854,1719561179762,-239.716356,0.00021656,2]
[330547855,1719561179777,-12619.30583,0.00021656,2]
[330547856,1719561179791,-419.949086,0.00021656,2]
[330547857,1719561179806,-526.175237,0.00021656,2]
[330547858,1719561179823,-19630.764364,0.00021656,2]
[330547859,1719561179838,-159.644349,0.00021656,2]
[330547860,1719561179853,-11380.633358,0.00021656,2]
[330547861,1719561179872,-8403.655252,0.00021656,2]
[330547862,1719561179887,-1164.601366,0.00021656,2]
[330547863,1719561179903,-212.400839,0.00021656,2]
[330547864,1719561179918,-1569.985052,0.00021656,2]
[330547865,1719561179932,-219.0,0.0002168,2]
[330547866,1719561179947,-214.0,0.0002168,2]
[330547867,1719561179962,-600.19091463,0.0002178,2]
[330547868,1719561179977,-1379.6950458,0.000218,5]
[330547869,1719561179992,-16471.05956929,0.0002188,2]
[330547870,1719561180006,-12043.9127113,0.00021898,2]
[330547871,1719561180020,-155.72944838,0.000219,2]
[330547872,1719561180037,-15742.39042056,0.000219,2]
[330547873,1719561180050,-163.3155528,0.00021917,2]
[330547874,1719561180066,-163.3155528,0.00021917,2]
[330547875,1719561180080,-907.53,0.00021917,3]
[330547876,1719561180097,-2122.53,0.00021917,3]
[330547877,1719561180113,-1141.96,0.00021917,3]
[330547878,1719561180127,-1690.68,0.00021917,3]
[330547879,1719561180142,-436.90609274,0.00021917,3]
[330547880,1719561180156,-870.65,0.00021917,3]
[330547881,1719561180170,-503.68,0.00021917,3]
[330547882,1719561180184,-500.0,0.00021917,3]
[330547883,1719561180199,-504.05,0.00021917,3]
[330547884,1719561180213,-846.93,0.00021917,3]
[330547885,1719561180226,-1149.92,0.00021917,3]
[330547886,1719561180240,-1397.93,0.00021917,3]
[330547887,1719561180256,-1748.17,0.00021917,3]
[330547888,1719561180270,-500.0,0.00021917,3]
[330547889,1719561180285,-542.84,0.00021917,3]
[330547890,1719561180299,-500.0,0.00021917,3]
[330547891,1719561180312,-693.92,0.00021917,3]
[330547892,1719561180326,-179.58387908,0.00021917,3]
[330547893,1719561180340,-792.31,0.00021917,3]
[330547894,1719561180354,-500.0,0.00021917,3]
[330547895,1719561180368,-908.05,0.00021917,3]
[330547896,1719561180381,-500.0,0.00021917,3]
[330547897,1719561180394,-1448.94,0.00021917,3]
[330547898,1719561180408,-500.0,0.00021917,3]
[330547899,1719561180422,-500.0,0.00021917,3]
[330547900,1719561180436,-1782.8,0.00021917,3]
[330547901,1719561180451,-211.58846952,0.00021917,3]
[330547902,1719561180465,-500.0,0.00021917,3]
[330547903,1719561180478,-856.16,0.00021917,3]
[330547904,1719561180491,-539.97,0.00021917,3]
[330547905,1719561180505,-500.0,0.00021917,3]
[330547906,1719561180519,-500.0,0.00021917,3]
[330547907,1719561180533,-1183.51,0.00021917,3]
[330547908,1719561180547,-1199.91,0.00021917,3]
[330547909,1719561180562,-1192.41,0.00021917,3]
[330547910,1719561180576,-2299.92,0.00021917,3]
[330547911,1719561180593,-500.0,0.00021917,3]
[330547912,1719561180608,-654.32,0.00021917,3]
[330547913,1719561180623,-673.16,0.00021917,3]
[330547914,1719561180638,-500.0,0.00021917,3]
[330547915,1719561180652,-1135.59,0.00021917,3]
[330547916,1719561180666,-718.46,0.00021917,3]
[330547917,1719561180680,-500.0,0.00021917,3]
[330547918,1719561180695,-500.0,0.00021917,3]
[330547919,1719561180711,-500.0,0.00021917,3]
[330547920,1719561180725,-828.5,0.00021917,3]
[330547921,1719561180740,-500.0,0.00021917,3]
[330547922,1719561180755,-500.0,0.00021917,3]
[330547923,1719561180769,-1470.46,0.00021917,2]
[330547924,1719561180783,-500.0,0.00021917,3]
[330547925,1719561180797,-568.18,0.00021917,3]
[330547926,1719561180813,-1942.8,0.00021917,3]
[330547927,1719561180826,-500.0,0.00021917,3]
[330547928,1719561180840,-500.0,0.00021917,3]
[330547929,1719561180852,-500.0,0.00021917,3]
[330547930,1719561180870,-559.8,0.00021917,3]
[330547931,1719561180885,-687.15,0.00021917,3]
[330547932,1719561180900,-557.81,0.00021917,3]
[330547933,1719561180913,-1013.31,0.00021917,3]
[330547934,1719561180928,-1313.87,0.00021917,3]
[330547935,1719561180945,-555.71,0.00021917,3]
[330547936,1719561180959,-385.80512262,0.00021917,3]
[330547937,1719561180972,-1142.83,0.00021917,3]
[330547938,1719561180986,-606.98,0.00021917,3]
[330547939,1719561181001,-500.0,0.00021917,3]
[330547940,1719561181015,-1090.69,0.00021917,3]
[330547941,1719561181029,-500.0,0.00021917,3]
[330547942,1719561181042,-500.0,0.00021917,3]
[330547943,1719561181056,-741.97,0.00021917,3]
[330547944,1719561181072,-500.0,0.00021917,3]
[330547945,1719561181086,-833.46,0.00021917,3]
[330547946,1719561181100,-858.42,0.00021917,3]
[330547947,1719561181114,-784.18,0.00021917,3]
[330547948,1719561181129,-500.0,0.00021917,3]
[330547949,1719561181141,-676.3,0.00021917,3]
[330547950,1719561181155,-640.7,0.00021917,3]
[330547951,1719561181170,-547.64,0.00021917,3]
[330547952,1719561181184,-1509.32,0.00021917,3]
[330547953,1719561181198,-1104.3,0.00021917,3]
[330547954,1719561181227,-775.75,0.00021917,3]
[330547955,1719561181247,-535.59238104,0.00021917,3]
[330547956,1719561181263,-500.0,0.00021917,3]
[330547957,1719561181280,-1251.26,0.00021917,3]
[330547958,1719561181295,-774.67,0.00021917,3]
[330547959,1719561181315,-1975.28,0.00021917,3]
[330547960,1719561181331,-500.0,0.00021917,3]
[330547961,1719561181350,-704.42,0.00021917,3]
[330547962,1719561181368,-917.85,0.00021917,3]
[330547963,1719561181385,-1651.77,0.00021917,3]
[330547964,1719561181400,-1425.82,0.00021917,3]
[330547965,1719561181416,-500.0,0.00021917,3]
[330547966,1719561181433,-500.0,0.00021917,3]
[330547967,1719561181450,-545.19,0.00021917,3]
[330547968,1719561181476,-575.69,0.00021917,3]
[330547969,1719561181492,-500.0,0.00021917,3]
[330547970,1719561181508,-998.16,0.00021917,3]
[330547971,1719561181524,-500.0,0.00021917,3]
[330547972,1719561181540,-586.61,0.00021917,3]
[330547973,1719561181554,-768.59,0.00021917,3]
[330547974,1719561181570,-848.48,0.00021917,3]
[330547975,1719561181586,-618.73,0.00021917,3]
[330547976,1719561181602,-2391.81,0.00021917,3]
[330547977,1719561181617,-500.0,0.00021917,3]
[330547978,1719561181633,-764.56,0.00021917,3]
[330547979,1719561181649,-1272.64,0.00021917,3]
[330547980,1719561181664,-688.17,0.00021917,3]
[330547981,1719561181680,-628.0,0.00021917,3]
[330547982,1719561181694,-652.19,0.00021917,3]
[330547983,1719561181709,-500.0,0.00021917,3]
[330547984,1719561181725,-1144.92,0.00021917,3]
[330547985,1719561181740,-8009.39,0.00021917,3]
[330547986,1719561181755,-500.0,0.00021917,3]
[330547987,1719561181769,-500.0,0.00021917,3]
[330547988,1719561181784,-500.0,0.00021917,3]
[330547989,1719561181800,-3067.21,0.00021917,3]
[330547990,1719561181814,-937.69,0.00021917,3]
[330547991,1719561181829,-1469.95,0.00021917,3]
[330547992,1719561181844,-608.87,0.00021917,3]
[330547993,1719561181861,-530.38,0.00021917,3]
[330547994,1719561181876,-2389.09,0.00021917,3]
[330547995,1719561181891,-931.89,0.00021917,3]
[330547996,1719561181906,-698.09,0.00021917,3]
[330547997,1719561181920,-1828.93,0.00021917,3]
[330547998,1719561181936,-500.0,0.00021917,3]
[330547999,1719561181950,-500.0,0.00021917,3]
[330548000,1719561181965,-2237.48,0.00021917,3]
[330548001,1719561181979,-809.41,0.00021917,3]
[330548002,1719561181993,-548.11,0.00021917,3]
[330548003,1719561182008,-1079.6,0.00021917,3]
[330548004,1719561182022,-844.19,0.00021917,3]
[330548005,1719561182036,-1576.09,0.00021917,3]
[330548006,1719561182050,-1489.92,0.00021917,3]
[330548007,1719561182065,-1957.19,0.00021917,3]
[330548008,1719561182080,-912.0,0.00021917,3]
[330548009,1719561182094,-688.77,0.00021917,3]
[330548010,1719561182109,-2356.49,0.00021917,3]
[330548011,1719561182123,-2130.37,0.00021917,3]
[330548012,1719561182138,-838.95,0.00021917,3]
[330548013,1719561182152,-596.16,0.00021917,3]
[330548014,1719561182167,-1793.14,0.00021917,3]
[330548015,1719561182182,-2016.92,0.00021917,3]
[330548016,1719561182624,-543.6,0.00021917,3]
[330548017,1719561182643,-1344.1,0.00021917,3]
[330548018,1719561182671,-2804.61,0.00021917,3]
[330548019,1719561182682,-2335.31,0.00021917,3]
[330548020,1719561182691,-966.61,0.00021917,3]
[330548021,1719561182700,-1555.99,0.00021917,3]
[330548022,1719561182710,-2999.18,0.00021917,3]
[330548023,1719561182719,-1299.02,0.00021917,3]
[330548024,1719561182728,-1622.54,0.00021917,3]
[330548025,1719561182737,-1982.91,0.00021917,3]
[330548026,1719561182746,-1196.1,0.00021917,3]
[330548027,1719561182755,-580.04,0.00021917,3]
[330548028,1719561182765,-585.72,0.00021917,3]
[330548029,1719561182774,-1835.49,0.00021917,3]
[330548030,1719561182784,-829.04,0.00021917,3]
[330548031,1719561182793,-500.0,0.00021917,3]
[330548032,1719561182803,-500.0,0.00021917,3]
[330548033,1719561182812,-294.10246594,0.00021917,3]
[330548034,1719561182822,-500.0,0.00021917,3]
[330548035,1719561182831,-1053.06,0.00021917,3]
[330548036,1719561182841,-500.0,0.00021917,3]
[330548037,1719561182850,-926.48,0.00021917,3]
[330548038,1719561182863,-2025.35,0.00021917,3]
[330548039,1719561182872,-527.62100347,0.00021917,3]
[330548040,1719561182881,-520.99,0.00021917,3]
[330548041,1719561182890,-2045.94,0.00021917,3]
[330548042,1719561182902,-1125.69,0.00021917,3]
[330548043,1719561182911,-3299.83,0.00021917,3]
[330548044,1719561182920,-652.91,0.00021917,3]
[330548045,1719561182929,-515.76,0.00021917,3]
[330548046,1719561182941,-518.58,0.00021917,3]
[330548047,1719561182950,-1218.63,0.00021917,3]
[330548048,1719561182959,-500.0,0.00021917,3]
[330548049,1719561182969,-764.42,0.00021917,3]
[330548050,1719561182978,-807.73,0.00021917,3]
[330548051,1719561182987,-500.0,0.00021917,3]
[330548052,1719561182997,-500.0,0.00021917,3]
[330548053,1719561183006,-500.0,0.00021917,3]
[330548054,1719561183015,-670.83,0.00021917,3]
[330548055,1719561183024,-500.0,0.00021917,3]
[330548056,1719561183033,-500.0,0.00021917,3]
[330548057,1719561183042,-717.38,0.00021917,3]
[330548058,1719561183051,-1228.76,0.00021917,3]
[330548059,1719561183061,-1190.64,0.00021917,3]
[330548060,1719561183073,-500.0,0.00021917,3]
[330548061,1719561183083,-1204.53,0.00021917,3]
[330548062,1719561183097,-1337.55,0.00021917,3]
[330548063,1719561183107,-500.0,0.00021917,3]
[330548064,1719561183116,-1119.97,0.00021917,3]
[330548065,1719561183126,-471.98257203,0.00021917,3]
[330548066,1719561183136,-4412.5,0.00021917,3]
[330548067,1719561183145,-1038.25,0.00021917,3]
[330548068,1719561183155,-930.05,0.00021917,3]
[330548069,1719561183165,-4811.88,0.00021917,3]
[330548070,1719561183176,-4473.58,0.00021917,3]
[330548071,1719561183187,-516.29238012,0.00021917,3]
[330548072,1719561183198,-689.91,0.00021917,3]
[330548073,1719561183208,-500.0,0.00021917,3]
[330548074,1719561183217,-500.0,0.00021917,3]
[330548075,1719561183227,-816.16,0.00021917,3]
[330548076,1719561183237,-2445.0,0.00021917,3]
[330548077,1719561183246,-500.0,0.00021917,3]
[330548078,1719561183255,-1090.73,0.00021917,3]
[330548079,1719561183265,-1132.58,0.00021917,3]
[330548080,1719561183274,-500.0,0.00021917,3]
[330548081,1719561183283,-615.52,0.00021917,3]
[330548082,1719561183292,-1125.15,0.00021917,3]
[330548083,1719561183302,-500.0,0.00021917,3]
[330548084,1719561183311,-568.55,0.00021917,3]
[330548085,1719561183327,-500.0,0.00021917,3]
[330548086,1719561183335,-2267.1,0.00021917,3]
[330548087,1719561183344,-2510.06,0.00021917,3]
[330548088,1719561183353,-724.86,0.00021917,3]
[330548089,1719561183362,-759.55,0.00021917,3]
[330548090,1719561183371,-500.0,0.00021917,3]
[330548091,1719561183380,-783.56,0.00021917,3]
[330548092,1719561183389,-500.0,0.00021917,3]
[330548093,1719561183399,-1851.28,0.00021917,3]
[330548094,1719561183408,-2477.12,0.00021917,3]
[330548095,1719561183417,-2254.48,0.00021917,3]
[330548096,1719561183426,-500.0,0.00021917,3]
[330548097,1719561183435,-2145.27,0.00021917,3]
[330548098,1719561183444,-3000.49,0.00021917,3]
[330548099,1719561183454,-1339.23,0.00021917,3]
[330548100,1719561183463,-1120.11,0.00021917,3]
[330548101,1719561183473,-1458.45,0.00021917,3]
[330548102,1719561183482,-1203.63,0.00021917,3]
[330548103,1719561183491,-780.04,0.00021917,3]
[330548104,1719561183501,-17654.57,0.00021917,3]
[330548105,1719561183510,-500.0,0.00021917,3]
[330548106,1719561183519,-290.02681225,0.00021917,3]
[330548107,1719561183528,-2156.78,0.00021917,3]
[330548108,1719561183538,-1038.74,0.00021917,3]
[330548109,1719561183547,-500.0,0.00021917,3]
[330548110,1719561183556,-1367.37,0.00021917,3]
[330548111,1719561183567,-1281.81,0.00021917,3]
[330548112,1719561183576,-305.73851215,0.00021917,3]
[330548113,1719561183586,-500.0,0.00021917,3]
[330548114,1719561183595,-707.98,0.00021917,3]
[330548115,1719561183605,-2512.87,0.00021917,3]
[330548116,1719561183614,-500.0,0.00021917,3]
[330548117,1719561183624,-500.0,0.00021917,3]
[330548118,1719561183634,-692.45,0.00021917,3]
[330548119,1719561183643,-1233.32,0.00021917,3]
[330548120,1719561183652,-2622.42,0.00021917,3]
[330548121,1719561183662,-1810.79,0.00021917,3]
[330548122,1719561183672,-1361.17,0.00021917,3]
[330548123,1719561183681,-1142.92,0.00021917,3]
[330548124,1719561183690,-1277.67,0.00021917,3]
[330548125,1719561183699,-1346.62,0.00021917,3]
[330548126,1719561183709,-1322.18,0.00021917,3]
[330548127,1719561183718,-500.0,0.00021917,3]
[330548128,1719561183727,-552.58,0.00021917,3]
[330548129,1719561183737,-863.49,0.00021917,3]
[330548130,1719561183747,-2301.13,0.00021917,3]
[330548131,1719561183758,-4612.82,0.00021917,3]
[330548132,1719561183767,-500.0,0.00021917,3]
[330548133,1719561183776,-1538.87,0.00021917,3]
[330548134,1719561183785,-1624.52,0.00021917,3]
[330548135,1719561183797,-2577.63,0.00021917,3]
[330548136,1719561183806,-500.0,0.00021917,3]
[330548137,1719561183818,-500.0,0.00021917,3]
[330548138,1719561183827,-500.0,0.00021917,3]
[330548139,1719561183836,-1509.29,0.00021917,3]
[330548140,1719561183845,-6138.1,0.00021917,3]
[330548141,1719561183857,-500.0,0.00021917,3]
[330548142,1719561183867,-1002.25,0.00021917,3]
[330548143,1719561183877,-1414.89,0.00021917,3]
[330548144,1719561183886,-1177.0,0.00021917,3]
[330548145,1719561183896,-1548.23,0.00021917,3]
[330548146,1719561183906,-1324.8,0.00021917,3]
[330548147,1719561183915,-1380.03,0.00021917,3]
[330548148,1719561183925,-1820.37,0.00021917,3]
[330548149,1719561183936,-2472.64,0.00021917,3]
[330548150,1719561183945,-705.74,0.00021917,3]
[330548151,1719561183955,-3381.95,0.00021917,3]
[330548152,1719561183964,-864.54,0.00021917,3]
[330548153,1719561183974,-5070.88,0.00021917,3]
[330548154,1719561183983,-2034.01,0.00021917,3]
[330548155,1719561183992,-1227.23,0.00021917,3]
[330548156,1719561184001,-1396.45,0.00021917,3]
[330548157,1719561184010,-2105.9,0.00021917,3]
[330548158,1719561184021,-1285.82,0.00021917,3]
[330548159,1719561184030,-1675.94,0.00021917,3]
[330548160,1719561184040,-500.0,0.00021917,3]
[330548161,1719561184050,-536.38,0.00021917,3]
[330548162,1719561184061,-500.0,0.00021917,3]
[330548163,1719561184073,-1080.4,0.00021917,3]
[330548164,1719561184082,-1091.76,0.00021917,3]
[330548165,1719561184091,-3936.72,0.00021917,3]
[330548166,1719561184101,-1135.8,0.00021917,3]
[330548167,1719561184110,-500.0,0.00021917,3]
[330548168,1719561184119,-500.0,0.00021917,3]
[330548169,1719561184129,-500.0,0.00021917,3]
[330548170,1719561184138,-4738.44,0.00021917,3]
[330548171,1719561184147,-500.0,0.00021917,3]
[330548172,1719561184156,-1651.05,0.00021917,3]
[330548173,1719561184166,-614.98,0.00021917,3]
[330548174,1719561184175,-1956.77,0.00021917,3]
[330548175,1719561184184,-280.72,0.00021917,7]
[330548176,1719561184193,-280.72,0.00021917,7]
[330548177,1719561184202,-933.08,0.00021917,3]
[330548178,1719561184212,-280.72,0.00021917,7]
[330548179,1719561184221,-280.72,0.00021917,7]
[330548180,1719561184231,-280.72,0.00021917,7]
[330548181,1719561184240,-280.72,0.00021917,7]
[330548182,1719561184250,-280.72,0.00021917,7]
[330548183,1719561184259,-280.72,0.00021917,7]
[330548184,1719561184268,-280.72,0.00021917,7]
[330548185,1719561184277,-280.72,0.00021917,7]
[330548186,1719561184286,-500.0,0.00021917,3]
[330548187,1719561184296,-280.72,0.00021917,7]
[330548188,1719561184305,-2667.99,0.00021917,3]
[330548189,1719561184315,-6250.57,0.00021917,3]
[330548190,1719561184325,-823.18,0.00021917,3]
[330548191,1719561184335,-1063.1,0.00021917,3]
[330548192,1719561184345,-1293.08,0.00021917,3]
[330548193,1719561184355,-500.0,0.00021917,3]
[330548194,1719561184365,-5103.03,0.00021917,3]
[330548195,1719561184374,-4756.33,0.00021917,3]
[330548196,1719561184383,-721.31,0.00021917,3]
[330548197,1719561184392,-1439.83,0.00021917,3]
[330548198,1719561184401,-2458.51,0.00021917,3]
[330548199,1719561184411,-500.0,0.00021917,3]
[330548200,1719561184420,-500.0,0.00021917,3]
[330548201,1719561184431,-1211.11,0.00021917,3]
[330548202,1719561184440,-770.64,0.00021917,3]
[330548203,1719561184450,-552.09,0.00021917,3]
[330548204,1719561184460,-3750.61,0.00021917,3]
[330548205,1719561184469,-500.0,0.00021917,3]
[330548206,1719561184479,-500.0,0.00021917,3]
[330548207,1719561184488,-2098.22,0.00021917,3]
[330548208,1719561184498,-500.0,0.00021917,3]
[330548209,1719561184507,-754.56,0.00021917,3]
[330548210,1719561184516,-4491.42,0.00021917,3]
[330548211,1719561184526,-500.0,0.00021917,3]
[330548212,1719561184536,-2020.73,0.00021917,3]
[330548213,1719561184545,-2438.38,0.00021917,3]
[330548214,1719561184556,-1992.71,0.00021917,3]
[330548215,1719561184566,-781.62,0.00021917,3]
[330548216,1719561184576,-500.0,0.00021917,3]
[330548217,1719561184585,-1432.47,0.00021917,3]
[330548218,1719561184595,-500.0,0.00021917,3]
[330548219,1719561184606,-1548.3,0.00021917,3]
[330548220,1719561184616,-5534.77,0.00021917,3]
[330548221,1719561184626,-885.59,0.00021917,3]
[330548222,1719561184635,-1994.67,0.00021917,3]
[330548223,1719561184645,-1403.1,0.00021917,3]
[330548224,1719561184654,-4164.92,0.00021917,3]
[330548225,1719561184664,-2686.24,0.00021917,3]
[330548226,1719561184673,-814.93,0.00021917,3]
[330548227,1719561184682,-526.81,0.00021917,3]
[330548228,1719561184692,-3931.36,0.00021917,3]
[330548229,1719561184701,-500.0,0.00021917,3]
[330548230,1719561184711,-1627.14,0.00021917,3]
[330548231,1719561184720,-500.0,0.00021917,3]
[330548232,1719561184730,-298.20915049,0.00021917,3]